Cogmind - Beta 14 @@@ ROGUE MODE // 2024.10.03 @ 11:20:45 Player: BionicBot Result: Destroyed by X-82 Rainmaker with Heavy Flak Cannon Performance ------------- Evolutions (6) 3000 Regions Visited (20) 4000 Robots Destroyed (230) 1150 Value Destroyed (8535) 8535 Prototype IDs (38) 760 Alien Tech Used (1) 200 Bonus (3287) 3287 TOTAL SCORE: 20932 Bonus ------- High Alert Combat Kills 202 Follower Combat Kills 1413 Network Hubs Disabled 200 Met Data Miner 300 Met Zhirov 300 Built Enhanced Grunts 300 A7 Reached Mainframe 300 Met R17 at Cetus 500 Friendly Fire -228 Cogmind --------- Core Integrity 0/1150 Matter 37/300 Energy 100/100 System Corruption 3% Temperature Cool (0) Movement Core (100) Ox1 Location -4/Factory Parts ------- > --- POWER (2) -------- (None) > --- PROPULSION (5) --- (None) > --- UTILITY (9) ------ Advanced Terrain Scan Processor Advanced Targeting Computer Layered Light Armor Plating Advanced Hacking Suite > --- WEAPON (3) ------- (None) > --- INVENTORY (5) ---- Improved Particle Charger Advanced Reaction Control System Advanced Datajack Plasma Cutter Great Maul Peak State ------------ > --- POWER ------------ Fusion Reactor Light Antimatter Reactor > --- PROPULSION ------- Armored Huge Wheel Cooled Gravmag System Cooled Gravmag System Cooled Gravmag System > --- UTILITY ---------- High-capacity Storage Unit Experimental Sensor Array Advanced Signal Interpreter Advanced Terrain Scan Processor Advanced Targeting Computer Experimental Weapon Shielding Improved Medium Armor Plating Improved Focal Shield Advanced Hacking Suite > --- WEAPON ----------- Wave Gun Phase Gun Phase Gun > --- INVENTORY -------- Light Angular Momentum Engine Micro Fission Core Carbon-fiber Leg Improved Cooling System Improved Coolant Injector Advanced Energy Well Advanced Terrain Scanner Improved Particle Charger Improved Transmission Jammer Advanced Reaction Control System Hardened Medium Armor Plating Thermal Shield Advanced Variable Charge Gun Advanced Variable Charge Gun Matter Neutralizer Rocket Launcher Advanced Datajack Plasma Cutter Great Maul [Rating: 117] Favorites ----------- Power Nuclear Core Engine Light Angular Momentum Engine Power Core Nuclear Core Reactor Fusion Reactor Propulsion Light Treads Treads Light Treads Leg Flexi-carbon Leg Wheel Wheel Hover Unit Cooled Gravmag System Utility Advanced Targeting Computer Device Experimental Sensor Array Storage Huge Storage Unit Processor Advanced Targeting Computer Hackware Advanced Hacking Suite Protection Improved Medium Armor Plating Weapon Phase Gun Energy Gun Phase Gun Energy Cannon Matter Neutralizer Ballistic Gun Minigun Ballistic Cannon Light Cannon Launcher Rocket Launcher Special Weapon Mining Laser Impact Weapon Great Maul Special Melee Weapon Advanced Datajack Build | -11 -10 -10 -9 -8 -7 -7 -7 -7 -6 -6 -6 -6 -6 -6 -5 -5 -5 -5 -4 -4 ------- Run | Yrd Mat Min Mat Mat Fac Low Low Dat Pro Fac Ext Cet Arc Hub Fac Upp Upp Zhi Pro Fac Slots Evolved 12 | . . . 2 2 2 . . . . 2 . . . . 2 . . . . 2 Power 1 | . . . . . . . . . . 1 . . . . . . . . . . Propulsion 3 | . . . 2 1 . . . . . . . . . . . . . . . . Utility 7 | . . . . 1 2 . . . . 1 . . . . 2 . . . . 1 Weapon 1 | . . . . . . . . . . . . . . . . . . . . 1 Parts Attached 372 | 6 8 7 34 31 30 13 12 2 13 33 26 8 6 17 44 16 24 8 7 27 Power 26 | 1 2 . 3 1 1 . . . . 1 3 1 2 . 6 1 . 1 . 3 Engine 15 | 1 2 . 2 . . . . . . . 2 . 2 . 5 . . . . 1 Core 7 | . . . 1 1 1 . . . . 1 1 . . . 1 1 . . . . Reactor 4 | . . . . . . . . . . . . 1 . . . . . 1 . 2 Propulsion 58 | 2 . 3 13 10 4 . . . 1 9 2 . 1 2 4 1 1 3 1 1 Treads 31 | 2 . . 11 10 4 . . . 1 1 . . . . . 1 1 . . . Leg 17 | . . . . . . . . . . 7 2 . 1 2 4 . . . . 1 Wheel 7 | . . 3 2 . . . . . . 1 . . . . . . . . 1 . Hover 3 | . . . . . . . . . . . . . . . . . . 3 . . Flight . | . . . . . . . . . . . . . . . . . . . . . Utility 165 | 1 4 . 10 4 17 5 8 . 6 19 16 5 3 7 22 6 15 2 2 13 Device 109 | . . . . . 11 4 6 . 4 14 14 4 3 6 18 4 10 . 1 10 Storage 7 | 1 2 . 1 . . . . . . 3 . . . . . . . . . . Processor 7 | . . . 1 2 1 . . . . 1 . . . . . 1 1 . . . Hackware 3 | . . . . . . . . . . 1 . . . . 2 . . . . . Protection 39 | . 2 . 8 2 5 1 2 . 2 . 2 1 . 1 2 1 4 2 1 3 Artifact . | . . . . . . . . . . . . . . . . . . . . . Weapon 123 | 2 2 4 8 16 8 8 4 2 6 4 5 2 . 8 12 8 8 2 4 10 Energy Gun 37 | . . . . . . . 2 . . 2 4 2 . 5 6 5 3 1 2 5 Energy Cannon 10 | . . . . . . . . . 2 . . . . 2 . 1 2 . 1 2 Ballistic Gun 38 | 2 2 1 7 11 5 4 . . 4 2 . . . . . . . . . . Ballistic Cannon 3 | . . 2 1 . . . . . . . . . . . . . . . . . Launcher 19 | . . . . 4 . 4 . 2 . . 1 . . . 2 1 . 1 1 3 Special Weapon 2 | . . 1 . . . . . . . . . . . 1 . . . . . . Impact Weapon 7 | . . . . . 1 . 1 . . . . . . . 2 1 2 . . . Slashing Weapon . | . . . . . . . . . . . . . . . . . . . . . Piercing Weapon . | . . . . . . . . . . . . . . . . . . . . . Special Melee Weapon 7 | . . . . 1 2 . 1 . . . . . . . 2 . 1 . . . Unidentified Prototypes 6 | . . . . . . . . . . 1 . 2 . . . . . 3 . . Corrupted Parts 1 | . . . . . . . . . . . . . . . 1 . . . . . System Corruption 1 | . . . . . . . . . . . . . . . 1 . . . . . Parts Lost 61 | . . 3 7 5 1 . . . . 1 3 . . 2 6 1 6 . . 26 Power 10 | . . . 1 . 1 . . . . . . . . . 3 . 1 . . 4 Propulsion 22 | . . 2 2 4 . . . . . . . . . 2 1 1 5 . . 5 Utility 17 | . . . 2 1 . . . . . 1 1 . . . 2 . . . . 10 Weapon 12 | . . 1 2 . . . . . . . 2 . . . . . . . . 7 Highest Loss Streak 20 | . . 2 4 2 1 . . . . 1 2 . . 1 2 1 3 . . 20 To Critical Strikes . | . . . . . . . . . . . . . . . . . . . . . Average Slot Usage (%) 96 | . 98 99 97 94 100 100 100 100 100 96 100 100 100 99 94 99 82 76 94 88 Engine 4 | . 14 14 8 . . . . . . . 3 12 12 13 8 5 3 . . . Core 4 | . . . 2 9 7 7 7 7 7 11 9 . . . . 5 5 5 5 . Treads 19 | . 28 6 32 41 38 38 38 38 38 8 . . . . . 1 4 5 1 . Leg 9 | . . . . . . . . . . 22 33 33 33 32 26 26 8 . . . Wheel 2 | . . 21 8 . . . . . . 1 . . . . . . . . 3 4 Device 7 | . . . . . 6 6 10 7 10 5 13 13 13 13 15 10 10 11 10 12 Storage 7 | . 14 14 11 9 7 7 7 7 7 6 6 6 6 6 5 5 5 5 5 4 Processor 10 | . . . . 7 15 15 15 15 15 12 13 13 13 13 11 17 17 17 17 14 Hackware 1 | . . . . . . . . . . 5 . . . . 5 5 5 5 5 5 Protection 7 | . 12 14 11 8 7 7 3 7 4 6 5 6 6 6 5 5 5 5 5 6 Energy Gun 4 | . . . . . . . 2 . . 8 12 13 13 12 10 10 9 . 4 9 Ballistic Gun 9 | . 27 19 21 17 13 14 12 . 11 4 . . . . . . . . . . Peak Build Rating 117 | 6 8 9 18 25 47 48 51 46 49 70 74 89 89 88 95 98 97 97 103 117 Average Rating 52 | 4 7 8 15 21 38 47 48 45 47 62 71 75 84 83 86 95 82 75 100 108 On Entrance 54 | . 6 8 9 18 25 47 48 45 45 48 70 72 89 88 75 95 97 67 96 101 Naked Turns . | . . . . . . . . . . . . . . . . . . . . . Heaviest Build 116 | 14 30 31 100 100 106 110 110 104 110 116 80 90 96 86 85 83 80 71 79 97 Greatest Support 119 | 40 40 40 80 103 119 119 119 119 119 119 92 91 91 91 91 86 70 33 33 33 Greatest Overweight (x) 17 | 4 . 2 9 1 1 . . . . 11 . . 1 1 1 1 2 6 2 17 Average Overweight (x) . | . . . 1 . . . . . . 1 . . . . . . 1 1 2 3 Largest Inventory Capacity 25 | 8 15 15 25 25 25 25 25 25 25 25 20 20 20 20 20 20 20 20 20 20 Average Capacity 21 | 7 12 15 24 25 25 25 25 25 25 21 20 20 20 20 20 20 20 20 20 19 Most Carried 25 | 4 15 15 25 25 25 25 25 25 25 25 20 20 20 20 20 20 20 20 20 20 Average Carried 20 | 2 9 14 22 24 24 24 24 25 24 21 19 19 19 19 18 19 19 20 20 18 Final Capacity 25 | 8 15 15 25 25 25 25 25 25 25 20 20 20 20 20 20 20 20 20 20 5 Final Carried 25 | 4 15 15 25 25 25 25 25 25 24 19 20 20 20 20 20 20 20 20 20 5 Class Distribution -------------------- 48% | Scavenger-Mutant 23% | Mutant 10% | Scavenger-Skirmisher 9% | Commander-Mutant 5% | Skirmisher Dominant Class ---------------- Mutant | -10/Materials Mutant | -10/Mines Scavenger-Mutant | -9/Materials Scavenger-Mutant | -8/Materials Scavenger-Mutant | -7/Factory Scavenger-Mutant | -7/Lower Caves Scavenger-Skirmisher | -7/Lower Caves Mutant | -7/Data Miner Scavenger-Skirmisher | -6/Proximity Caves Mutant | -6/Factory Mutant | -6/Extension Commander-Mutant | -6/Cetus Commander-Mutant | -6/Archives Scavenger-Mutant | -6/Hub_04(d) Scavenger-Mutant | -5/Factory Scavenger-Skirmisher | -5/Upper Caves Scavenger-Skirmisher | -5/Upper Caves Scavenger-Assassin | -5/Zhirov Skirmisher | -4/Proximity Caves Skirmisher | -4/Factory Resources | -11 -10 -10 -9 -8 -7 -7 -7 -7 -6 -6 -6 -6 -6 -6 -5 -5 -5 -5 -4 -4 ----------- Run | Yrd Mat Min Mat Mat Fac Low Low Dat Pro Fac Ext Cet Arc Hub Fac Upp Upp Zhi Pro Fac Matter Collected 7510 | 265 501 458 1028 1069 340 671 189 . 334 538 334 80 47 151 645 188 202 177 179 114 Remotely . | . . . . . . . . . . . . . . . . . . . . . Salvage Created 9746 | 117 614 383 1329 1890 375 212 . . 57 380 1251 110 167 228 1499 112 258 268 29 467 Parts 447 | 4 43 34 93 97 28 11 . . 3 17 27 2 9 5 37 5 8 1 5 18 Haulers Intercepted 6 | . 1 . 3 . . . . . . . . . . . 1 . . . . 1 Recyclers Shooed 11 | . 2 . 3 1 1 . . . . . 2 . . . 2 . . . . . Parts Field Recycled . | . . . . . . . . . . . . . . . . . . . . . Retrieved Matter . | . . . . . . . . . . . . . . . . . . . . . Parts Self-Destructed 30 | . . . . . . 13 . . 1 . . . . . . 4 7 . 5 . Prevented 5 | . . . . . . 4 . . . . . . . . . . . 1 . . Kills | -11 -10 -10 -9 -8 -7 -7 -7 -7 -6 -6 -6 -6 -6 -6 -5 -5 -5 -5 -4 -4 ------- Run | Yrd Mat Min Mat Mat Fac Low Low Dat Pro Fac Ext Cet Arc Hub Fac Upp Upp Zhi Pro Fac Combat Hostiles Destroyed 174 | . 13 6 26 35 7 8 . . 3 6 16 2 1 4 22 2 7 . 2 14 Melee 1 | . . . . . . . . . . . . . . . 1 . . . . . Guns 121 | . 13 5 25 30 7 2 . . 1 3 9 1 1 4 9 2 7 . . 2 Cannons 4 | . . 1 1 . . . . . . . . . . . . . . . . 2 AOE 34 | . . . . 5 . 6 . . 2 . 2 . . . 7 . . . 2 10 Classes Destroyed 18 | 2 5 1 3 1 1 . . . 1 . 1 . . . 1 . . . . 2 Worker 7 | . . 2 . 2 2 . . . . . . . . . 1 . . . . . Builder 4 | . . . 1 1 . . . . . . . . . . 1 . . . . 1 Tunneler 7 | 1 1 5 . . . . . . . . . . . . . . . . . . Hauler 6 | . 1 . 3 . . . . . . . . . . . 1 . . . . 1 Recycler 12 | 1 1 . . 4 1 . . . . . 2 . . . 3 . . . . . Operator 6 | . 2 . 1 . . . . . . . . . 3 . . . . . . . Drone 2 | . . . . . . . . . 2 . . . . . . . . . . . Watcher 14 | . 2 . 2 2 . . . . . 2 3 . . . 2 . . . . 1 Swarmer 36 | . 6 . 4 3 . 4 . . . . 3 . . . 4 . 5 . 2 5 Grunt 72 | . 7 6 11 21 2 3 . . . 2 7 . . 3 9 . 1 . . . Brawler 1 | . . . . 1 . . . . . . . . . . . . . . . . Duelist 2 | . . . 1 1 . . . . . . . . . . . . . . . . Protector 2 | . . . . . . . . . . . . . . . . . . . . 2 Sentry 34 | . . . 10 9 1 . . . 1 2 4 . 1 1 3 . 1 . . 1 Specialist 1 | . . . . . . . . . . . . . . . . . . . . 1 Hunter 3 | . . . . . . . . . . . . . . . 1 . . . . 2 Programmer 17 | . . . . . 4 1 . . . 2 . . . . 5 2 . . . 3 Behemoth 2 | . . . . . . . . . . . 2 . . . . . . . . . Cetus Guard 2 | . . . . . . . . . . . . 2 . . . . . . . . Best Kill Streak 15 | 2 4 4 4 10 2 4 . . 2 2 3 1 2 2 11 1 3 . 2 15 Combat Bots Only 12 | . 3 3 4 7 1 4 . . 2 1 3 1 1 2 7 1 3 . 2 12 Max Kills in Single Turn 4 | 1 1 1 1 2 1 4 . . 2 1 2 1 1 1 4 1 1 . 2 3 Gunslinging 1 | . . . . . . . . . . . . . . . 1 . . . . . Exploded 4 | . . . . 2 . 4 . . 2 . 2 . . . 3 . . . 2 3 Melee 1 | . . . . . . . . . . . . . . . 1 . . . . . Uniques/NPCs Destroyed . | . . . . . . . . . . . . . . . . . . . . . Combat | -11 -10 -10 -9 -8 -7 -7 -7 -7 -6 -6 -6 -6 -6 -6 -5 -5 -5 -5 -4 -4 -------- Run | Yrd Mat Min Mat Mat Fac Low Low Dat Pro Fac Ext Cet Arc Hub Fac Upp Upp Zhi Pro Fac Hostile Shots Fired 1833 | . 65 45 144 143 76 21 . . 28 83 233 32 5 61 137 17 50 . 6 687 Missed 648 | . 14 12 35 37 28 5 . . 13 33 77 15 2 22 47 4 15 . 1 288 Damage Taken 13331 | . 541 427 1653 1656 320 196 . . 67 361 843 304 59 732 1434 264 485 . 143 3846 Core 2353 | . 160 47 168 187 34 . . . 4 53 133 38 . 114 168 64 30 . . 1153 Absorbed by Shields 2711 | . . . . . 160 66 . . 85 155 769 96 24 33 78 . . . . 1245 Redirected to Shielding 221 | . 44 10 2 . . . . . . . . . . . . . . . 66 99 Ignored by Resistances 1027 | . . . . . . . . . . 8 100 62 . 178 268 . 81 . 20 310 Regen/Repaired (Parts) 167 | . 82 . 11 74 . . . . . . . . . . . . . . . . Core Remaining (%) 66 | 100 . 17 58 66 . . . . 94 . . . . 60 . . . . 73 . Volleys Fired 730 | 6 56 64 107 107 25 10 . . 28 29 75 15 22 22 61 15 30 . 17 41 Largest 3 | 2 2 2 2 2 2 2 . . 2 2 2 2 2 2 2 2 2 . 1 3 Hottest 281 | 40 40 100 58 66 53 66 . . 66 170 170 156 160 160 156 176 176 . 90 281 Shots Fired 1367 | 12 112 98 214 214 48 22 . . 33 57 149 30 44 34 121 26 55 . 20 78 Gun 1185 | 12 112 59 207 206 48 16 . . 7 57 148 30 44 24 104 22 50 . 1 38 Cannon 111 | . . 21 7 . . . . . 24 . . . . 10 . 4 5 . 14 26 Launcher 53 | . . . . 8 . 6 . . 2 . 1 . . . 17 . . . 5 14 Special 18 | . . 18 . . . . . . . . . . . . . . . . . . Kinetic 707 | 12 112 80 214 206 48 16 . . 7 12 . . . . . . . . . . Thermal 607 | . . 18 . . . . . . 24 45 148 30 44 34 104 26 55 . 15 64 Explosive 53 | . . . . 8 . 6 . . 2 . 1 . . . 17 . . . 5 14 Electromagnetic . | . . . . . . . . . . . . . . . . . . . . . Robot Hit Streak 33 | 4 5 11 20 23 11 7 . . 7 11 33 8 9 9 10 6 14 . . 11 Robot Miss Streak 5 | 3 3 2 4 2 5 5 . . 2 5 3 2 2 3 3 2 5 . 3 3 Penetration Max . | . . . . . . . . . . . . . . . . . . . . . Secondary Targets 8 | . 1 1 . . . . . . . . 2 1 . . 2 . 1 . . . Max Gunslinging Chain 1 | . 1 1 . . . . . . . . 1 1 . . 1 . 1 . . . Shots Hit Robots 884 | 8 62 47 150 160 37 16 . 1 5 40 115 23 29 14 88 14 27 6 . 42 Core Hits 466 | 3 30 20 54 91 25 17 . . 7 21 46 7 12 9 56 4 10 1 3 50 Critical Kills 2 | . 1 1 . . . . . . . . . . . . . . . . . . Critical Parts Destroyed 5 | 1 . . 1 2 . . . . . . . . . . . . . 1 . . Critical Strikes 51 | 1 1 1 1 2 . . . . . 6 19 4 . . 9 . 3 1 . 3 Burn 44 | . . . . . . . . . . 6 19 4 . . 9 . 3 . . 3 Destroy 6 | 1 1 1 1 2 . . . . . . . . . . . . . . . . Smash 1 | . . . . . . . . . . . . . . . . . . 1 . . Melee Attacks 24 | . . . . . 1 . . 1 . . . . . . 14 1 1 6 . . Impact 21 | . . . . . 1 . . . . . . . . . 13 1 1 5 . . Slashing . | . . . . . . . . . . . . . . . . . . . . . Piercing . | . . . . . . . . . . . . . . . . . . . . . Sneak Attacks 4 | . . . . . . . . 1 . . . . . . 2 . . 1 . . Combat Hostiles . | . . . . . . . . . . . . . . . . . . . . . Follow-up Attacks . | . . . . . . . . . . . . . . . . . . . . . Damage Inflicted 23466 | 107 803 633 2274 3205 806 725 . . 191 757 2567 589 910 504 3762 449 807 504 74 3799 Guns 16050 | 107 788 544 2189 2524 777 205 . . 108 755 2412 589 908 480 1698 449 807 . . 710 Cannons 631 | . . 89 73 . . . . . . . . . . . . . . . . 469 Explosions 5535 | . . . . 670 . 520 . . 83 . 112 . . . 1456 . . . 74 2620 Melee 1048 | . . . . . . . . . . . . . . . 544 . . 504 . . Ramming 202 | . 15 . 12 11 29 . . . . 2 43 . 2 24 64 . . . . . Kinetic 7541 | 107 788 633 2262 2524 777 205 . . 108 137 . . . . . . . . . . Thermal 9140 | . . . . . . . . . . 618 2412 589 908 480 1698 449 807 . . 1179 Explosive 5535 | . . . . 670 . 520 . . 83 . 112 . . . 1456 . . . 74 2620 Electromagnetic . | . . . . . . . . . . . . . . . . . . . . . Impact 1048 | . . . . . . . . . . . . . . . 544 . . 504 . . Slashing . | . . . . . . . . . . . . . . . . . . . . . Piercing . | . . . . . . . . . . . . . . . . . . . . . Highest Corruption 6 | . 1 1 . 1 2 2 2 2 2 2 2 . . 2 4 6 6 6 6 3 Average Corruption 2 | . 1 1 . 1 1 2 2 2 2 2 1 . . 1 1 4 6 6 6 2 Corruption Purged 3 | . . . . . . . . . . . 3 . . . . . . . . . Corruption Blocked . | . . . . . . . . . . . . . . . . . . . . . Effects 238 | . 6 8 . . 16 24 26 . 11 11 17 . . . 22 16 48 13 19 1 Message Errors 52 | . 2 . . . 4 7 5 . 4 2 2 . . . 4 3 10 4 5 . Matter Fused 66 | . 1 6 . . 4 6 6 . 3 3 7 . . . 5 5 8 5 7 . Heat Flow Errors 34 | . 1 . . . 3 3 3 . 1 1 3 . . . 2 3 11 2 1 . Energy Discharges 33 | . 1 1 . . . 2 6 . 1 2 1 . . . 5 5 5 2 2 . Parts Fused 5 | . . . . . . 1 1 . . 1 1 . . . . . 1 . . . Data Loss (minor) 28 | . 1 1 . . 4 1 3 . 1 1 2 . . . 4 . 9 . 1 . Data Loss (major) 6 | . . . . . . 1 2 . . . 1 . . . 2 . . . . . Misfires 9 | . . . . . 1 2 . . 1 . . . . . . . 1 . 3 1 Alerts 3 | . . . . . . 1 . . . . . . . . . . 2 . . . Weapon Failures 2 | . . . . . . . . . . 1 . . . . . . 1 . . . Overload Shots . | . . . . . . . . . . . . . . . . . . . . . Overflow Damage 757 | . . . . 2 . 1 . . 15 . . . . . 237 . . 360 . 142 Projectiles . | . . . . . . . . . . . . . . . . . . . . . Explosions 201 | . . . . 2 . 1 . . 15 . . . . . 41 . . . . 142 Melee 556 | . . . . . . . . . . . . . . . 196 . . 360 . . Knockbacks 6 | . . 2 . . . . . . . . . . . . 4 . . . . . Impact 4 | . . . . . . . . . . . . . . . 4 . . . . . Kinetic 2 | . . 2 . . . . . . . . . . . . . . . . . . Secondary . | . . . . . . . . . . . . . . . . . . . . . Self-Inflicted Damage 125 | . . . . . . . . . 33 . . . . . . . . . 92 . Shots 4 | . . . . . . . . . 1 . . . . . . . . . 3 . Rammed 6 | . 2 . 3 . 1 . . . . . . . . . . . . . . . Targets Rammed 21 | . 2 . 4 1 2 . . . . 1 2 . 1 5 3 . . . . . Kicked 12 | . . . . . . . . . . 1 2 . 1 5 3 . . . . . Crushed 3 | . . . 1 1 1 . . . . . . . . . . . . . . . Highest Temperature 464 | . 206 100 32 45 208 255 229 . 225 342 269 81 48 45 352 264 464 190 302 422 Average Temperature 68 | . 62 43 9 11 44 64 105 . 43 85 79 36 20 17 90 106 115 89 107 127 Received Heat Transfer 2964 | . 201 177 465 873 85 30 . . 16 122 329 69 . 73 362 . 45 . . 117 Effects 16 | . . . . . . . . . . 4 1 . . . . . 2 . 3 6 Shutdowns 4 | . . . . . . . . . . 1 . . . . . . 1 . . 2 Energy Bleed 2 | . . . . . . . . . . . . . . . . . 1 . . 1 Interference 9 | . . . . . . . . . . 3 1 . . . . . . . 3 2 Short Circuit 1 | . . . . . . . . . . . . . . . . . . . . 1 Siege Activations . | . . . . . . . . . . . . . . . . . . . . . Robots Corrupted 4 | . . . . . . . . . . . . . . . 3 . . 1 . . Combat Hostiles 2 | . . . . . . . . . . . . . . . 1 . . 1 . . Parts Fried 7 | . . . . . . . . . . . . . . . 6 . . 1 . . Impact Corruptions 15 | . . . . . . . . . . . . . . . 7 . . 8 . . Robots Melted 13 | . . . . . . . . . . 3 5 1 . . 4 . . . . . Combat Hostiles 13 | . . . . . . . . . . 3 5 1 . . 4 . . . . . Parts Melted 88 | . . . . . . . . . . 11 37 1 3 . 26 1 3 . . 6 Heat Transferred 19564 | . . . . . . . . . . 2250 6978 1418 1184 572 3832 518 1258 . . 1554 Parts Sabotaged . | . . . . . . . . . . . . . . . . . . . . . Parts Stolen . | . . . . . . . . . . . . . . . . . . . . . Parts Stripped . | . . . . . . . . . . . . . . . . . . . . . Power Chain Reactions . | . . . . . . . . . . . . . . . . . . . . . Alert | -11 -10 -10 -9 -8 -7 -7 -7 -7 -6 -6 -6 -6 -6 -6 -5 -5 -5 -5 -4 -4 ------- Run | Yrd Mat Min Mat Mat Fac Low Low Dat Pro Fac Ext Cet Arc Hub Fac Upp Upp Zhi Pro Fac Peak Influence 667 | 10 337 89 305 667 329 . . . . 83 522 479 359 417 424 . . . . 350 Initial 292 | . 6 14 3 25 285 . . . . . . 292 184 2 67 . . . . 59 Average 167 | 3 131 21 157 343 115 . . . . 24 106 379 214 202 224 . . . . 77 Maximum Alert Level 2 | . 1 . 1 2 1 . . . . . 2 2 1 2 2 . . . . 1 Low Security (%) 63 | 100 74 100 64 25 80 . . . . 100 81 . 57 40 42 . . . . 93 Level 1 28 | . 25 . 35 34 19 . . . . . 13 50 42 58 55 . . . . 6 Level 2 7 | . . . . 40 . . . . . . 5 49 . . 2 . . . . . Level 3 . | . . . . . . . . . . . . . . . . . . . . . Level 4 . | . . . . . . . . . . . . . . . . . . . . . Level 5 . | . . . . . . . . . . . . . . . . . . . . . High Security . | . . . . . . . . . . . . . . . . . . . . . Max Security . | . . . . . . . . . . . . . . . . . . . . . Squads Dispatched 31 | . 3 . 2 3 8 . . . . 4 3 . . 3 4 . . . . 1 Investigation 4 | . 1 . . 2 . . . . . . 1 . . . . . . . . . Extermination 10 | . . . . . 4 . . . . 3 . . . . 2 . . . . 1 Reinforcement 14 | . 2 . 2 1 1 . . . . 1 2 . . 3 2 . . . . . Assault . | . . . . . . . . . . . . . . . . . . . . . Garrison 3 | . . . . . 3 . . . . . . . . . . . . . . . Intercept . | . . . . . . . . . . . . . . . . . . . . . Searches Triggered . | . . . . . . . . . . . . . . . . . . . . . Data Miner Redirects 1 | . . . . . . . . . . . . . . . . . . . . 1 Construction Impeded 2 | . . . . . . . . . . . . . . 1 1 . . . . . Haulers Reinforced . | . . . . . . . . . . . . . . . . . . . . . Active Scanning Responses . | . . . . . . . . . . . . . . . . . . . . . Cargo Convoy Interrupts 1 | . . . . . . . . . . . . . . . . . . . . 1 Stealth | -11 -10 -10 -9 -8 -7 -7 -7 -7 -6 -6 -6 -6 -6 -6 -5 -5 -5 -5 -4 -4 --------- Run | Yrd Mat Min Mat Mat Fac Low Low Dat Pro Fac Ext Cet Arc Hub Fac Upp Upp Zhi Pro Fac Distress Signals 21 | . 4 . 3 4 . . . . . 1 1 2 . 2 4 . . . . . Communications Jammed 19 | . . . . . . . . . . . . . . . . . . . . 19 Distress Signals 19 | . . . . . . . . . . . . . . . . . . . . 19 Times Spotted 303 | . 23 8 54 45 10 7 . . 3 10 24 14 9 24 30 2 9 . 4 27 Peak Tracking Total 15 | . 3 3 5 6 2 4 . . 3 2 5 5 2 15 5 2 3 . 5 13 Tactical Retreats 14 | . 1 . 1 2 1 . . . . . 1 . . 1 3 . 2 . 1 1 Traps | -11 -10 -10 -9 -8 -7 -7 -7 -7 -6 -6 -6 -6 -6 -6 -5 -5 -5 -5 -4 -4 ------- Run | Yrd Mat Min Mat Mat Fac Low Low Dat Pro Fac Ext Cet Arc Hub Fac Upp Upp Zhi Pro Fac Traps Triggered 10 | . 2 . 2 3 . . . . . 1 1 . . 1 . . . . . . Indirectly . | . . . . . . . . . . . . . . . . . . . . . Trap Hack Attempts 76 | . . . . . 58 . . . . . . . . . 18 . . . . . Triggered . | . . . . . . . . . . . . . . . . . . . . . Disarmed 2 | . . . . . 2 . . . . . . . . . . . . . . . Reprogrammed 8 | . . . . . 6 . . . . . . . . . 2 . . . . . Reused 1 | . . . . . . . . . . . . . . . 1 . . . . . Traps Extracted . | . . . . . . . . . . . . . . . . . . . . . Installed . | . . . . . . . . . . . . . . . . . . . . . Triggered 2 | . . . . . . 1 . . . . . . . . 1 . . . . . Machines | -11 -10 -10 -9 -8 -7 -7 -7 -7 -6 -6 -6 -6 -6 -6 -5 -5 -5 -5 -4 -4 ---------- Run | Yrd Mat Min Mat Mat Fac Low Low Dat Pro Fac Ext Cet Arc Hub Fac Upp Upp Zhi Pro Fac Machines Disabled 11 | . 1 . 2 1 . . . . . . . . 3 2 1 . 1 . . . Max in Single Turn 1 | . 1 . 1 1 . . . . . . . . 1 1 1 . 1 . . . Garrison Access 2 | . . . . . . . . . . . . . . . 1 . . . . 1 Network Hub 1 | . . . . . . . . . . . . . . 1 . . . . . . Machines Repaired . | . . . . . . . . . . . . . . . . . . . . . Machines Dismantled 1 | . . . . . . . . . . . . . . 1 . . . . . . Machines Sabotaged . | . . . . . . . . . . . . . . . . . . . . . Overloaded Fab Kills . | . . . . . . . . . . . . . . . . . . . . . Hacking | -11 -10 -10 -9 -8 -7 -7 -7 -7 -6 -6 -6 -6 -6 -6 -5 -5 -5 -5 -4 -4 --------- Run | Yrd Mat Min Mat Mat Fac Low Low Dat Pro Fac Ext Cet Arc Hub Fac Upp Upp Zhi Pro Fac Machines Accessed 77 | . 10 . 15 9 7 1 1 3 . 6 4 1 . 1 7 1 2 4 . 5 Terminals 44 | . 7 . 9 7 6 . . . . 3 4 1 . 1 3 . . . . 3 Fabricators 3 | . . . . . 1 . . . . 1 . . . . 1 . . . . . Repair Stations 5 | . 1 . 2 1 . . . . . . . . . . 1 . . . . . Recycling Units 8 | . 2 . 2 1 . . . . . 2 . . . . . . . . . 1 Scanalyzers 3 | . . . 2 . . . . . . . . . . . 1 . . . . . Garrison Access 2 | . . . . . . . . . . . . . . . 1 . . . . 1 Total Hacks 227 | . 27 . 59 29 14 1 1 24 . 11 6 1 . 1 22 1 2 17 . 11 Successful 135 | . 12 . 37 16 5 1 1 24 . 4 . 1 . . 9 1 2 17 . 5 Failed 91 | . 15 . 21 13 9 . . . . 7 6 . . 1 13 . . . . 6 Catastrophic 17 | . 1 . 5 3 2 . . . . . 3 . . 1 1 . . . . 1 Database Lockouts 1 | . . . 1 . . . . . . . . . . . . . . . . . Manual 123 | . 23 . 29 25 14 . . . . 9 3 1 . 1 8 . . . . 10 Terminals 113 | . 19 . 28 25 12 . . . . 5 6 1 . 1 9 . . . . 7 Fabricators 7 | . . . . . 2 . . . . 2 . . . . 3 . . . . . Repair Stations 13 | . 4 . 5 2 . . . . . . . . . . 2 . . . . . Recycling Units 18 | . 4 . 5 2 . . . . . 4 . . . . . . . . . 3 Scanalyzers 27 | . . . 21 . . . . . . . . . . . 6 . . . . . Garrison Access 3 | . . . . . . . . . . . . . . . 2 . . . . 1 Terminal Hacks 54 | . 1 . 3 2 . 1 1 24 . . . 1 . . 1 1 2 17 . . Record 12 | . . . . . . . . 6 . . . . . . . . 1 5 . . Part Schematic 15 | . . . 1 . . . . 10 . . . . . . . . . 4 . . Robot Schematic 5 | . . . . . . . . 5 . . . . . . . . . . . . Robot Analysis 7 | . 1 . . 2 . . . . . . . . . . . . . 4 . . Prototype ID Bank 7 | . . . . . . . . 3 . . . . . . . . . 4 . . Open Door 5 | . . . . . . 1 1 . . . . 1 . . . 1 1 . . . Machine Index 1 | . . . . . . . . . . . . . . . 1 . . . . . Unreport Threat 2 | . . . 2 . . . . . . . . . . . . . . . . . Fabricator Hacks 1 | . . . . . . . . . . 1 . . . . . . . . . . Load Schematic 1 | . . . . . . . . . . 1 . . . . . . . . . . Repair Station Hacks 8 | . 2 . 3 2 . . . . . . . . . . 1 . . . . . Scan Component 5 | . 1 . 2 1 . . . . . . . . . . 1 . . . . . Repair 3 | . 1 . 1 1 . . . . . . . . . . . . . . . . Recycling Unit Hacks . | . . . . . . . . . . . . . . . . . . . . . Scanalyzer 22 | . . . 18 . . . . . . . . . . . 4 . . . . . Insert Component 10 | . . . 8 . . . . . . . . . . . 2 . . . . . Analyze 12 | . . . 10 . . . . . . . . . . . 2 . . . . . Garrison Access Hacks 2 | . . . . . . . . . . . . . . . 1 . . . . 1 Seal Access 2 | . . . . . . . . . . . . . . . 1 . . . . 1 Unauthorized Hacks 48 | . 9 . 13 12 5 . . . . 3 . . . . 2 . . . . 4 Terminals 39 | . 7 . 11 10 5 . . . . 1 . . . . 2 . . . . 3 Assimilate 1 | . . . 1 . . . . . . . . . . . . . . . . . Botnet 13 | . 1 . 5 5 1 . . . . . . . . . . . . . . 1 Skim 25 | . 6 . 5 5 4 . . . . 1 . . . . 2 . . . . 2 Fabricators . | . . . . . . . . . . . . . . . . . . . . . Repair Stations . | . . . . . . . . . . . . . . . . . . . . . Recycling Units 9 | . 2 . 2 2 . . . . . 2 . . . . . . . . . 1 Reject 3 | . 1 . 1 1 . . . . . . . . . . . . . . . . Mask 6 | . 1 . 1 1 . . . . . 2 . . . . . . . . . 1 Scanalyzers . | . . . . . . . . . . . . . . . . . . . . . Garrison Access . | . . . . . . . . . . . . . . . . . . . . . Data Cores Recovered 1 | . . . 1 . . . . . . . . . . . . . . . . . Used . | . . . . . . . . . . . . . . . . . . . . . Hacking Detections 59 | . 9 . 15 7 7 . . . . 6 4 . . 1 6 . . . . 4 Full Trace Events 2 | . 2 . . . . . . . . . . . . . . . . . . . Feedback Events 1 | . 1 . . . . . . . . . . . . . . . . . . . Corruption 1 | . 1 . . . . . . . . . . . . . . . . . . . Feedback Blocked . | . . . . . . . . . . . . . . . . . . . . . Robot Schematics Acquired 5 | . . . . . . . . 5 . . . . . . . . . . . . Robots Built . | . . . . . . . . . . . . . . . . . . . . . Authchips . | . . . . . . . . . . . . . . . . . . . . . Time . | . . . . . . . . . . . . . . . . . . . . . Total Robot Build Rating . | . . . . . . . . . . . . . . . . . . . . . Part Schematics Acquired 21 | . . . 7 . . . . 10 . . . . . . . . . 4 . . Parts Built . | . . . . . . . . . . . . . . . . . . . . . Authchips . | . . . . . . . . . . . . . . . . . . . . . Time . | . . . . . . . . . . . . . . . . . . . . . Total Part Build Rating . | . . . . . . . . . . . . . . . . . . . . . Parts Repaired 3 | . 1 . 1 1 . . . . . . . . . . . . . . . . Time 194 | . 26 . 136 32 . . . . . . . . . . . . . . . . Parts Recycled . | . . . . . . . . . . . . . . . . . . . . . Recycled Matter . | . . . . . . . . . . . . . . . . . . . . . Retrieved Matter . | . . . . . . . . . . . . . . . . . . . . . Retrieved Components . | . . . . . . . . . . . . . . . . . . . . . Parts Scanalyzed 8 | . . . 7 . . . . . . . . . . . 1 . . . . . Part Schematics Acquired 6 | . . . 6 . . . . . . . . . . . . . . . . . Parts Damaged 1 | . . . 1 . . . . . . . . . . . . . . . . . Bothacking | -11 -10 -10 -9 -8 -7 -7 -7 -7 -6 -6 -6 -6 -6 -6 -5 -5 -5 -5 -4 -4 ------------ Run | Yrd Mat Min Mat Mat Fac Low Low Dat Pro Fac Ext Cet Arc Hub Fac Upp Upp Zhi Pro Fac Used RIF Installer . | . . . . . . . . . . . . . . . . . . . . . Robots Hacked 2 | . . . . . . . . 1 . . . . . . . . . 1 . . Non-combat . | . . . . . . . . . . . . . . . . . . . . . Combat 2 | . . . . . . . . 1 . . . . . . . . . 1 . . Robot Hacks Applied 2 | . . . . . . . . 1 . . . . . . . . . 1 . . parse_system 2 | . . . . . . . . 1 . . . . . . . . . 1 . . Relay Couplers Released . | . . . . . . . . . . . . . . . . . . . . . Fabnet Peak Effective % . | . . . . . . . . . . . . . . . . . . . . . Robots Rewired 7 | . . . . . . . . . . . 7 . . . . . . . . . Allies Hacked . | . . . . . . . . . . . . . . . . . . . . . Hacks Repelled . | . . . . . . . . . . . . . . . . . . . . . Allies | -11 -10 -10 -9 -8 -7 -7 -7 -7 -6 -6 -6 -6 -6 -6 -5 -5 -5 -5 -4 -4 -------- Run | Yrd Mat Min Mat Mat Fac Low Low Dat Pro Fac Ext Cet Arc Hub Fac Upp Upp Zhi Pro Fac Total Allies 23 | . . 2 1 . . . . . . . 15 5 . . . . . . . . Largest Group 15 | . . 2 2 . . . . . . . 11 15 13 8 . . . . . . Highest-Rated Group 881 | . . 42 42 . . . . . . . 446 881 792 532 . . . . . . Highest-Rated Ally 159 | . . 31 31 . . . . . . . 159 150 150 96 . . . . . . Total Orders 4 | . . . . . . . . . . . . . . 4 . . . . . . STAY 1 | . . . . . . . . . . . . . . 1 . . . . . . FOLLOW 1 | . . . . . . . . . . . . . . 1 . . . . . . EXPLORE 2 | . . . . . . . . . . . . . . 2 . . . . . . Ally Attacks 226 | . . . 23 . . . . . . . 62 71 19 51 . . . . . . Total Damage 7062 | . . . 208 . . . . . . . 1628 2409 624 2193 . . . . . . Kills 32 | . . . 4 . . . . . . . 9 12 3 4 . . . . . . Allies Corrupted 3 | . . . 1 . . . . . . . . . . 2 . . . . . . Allies Melted . | . . . . . . . . . . . . . . . . . . . . . Intel | -11 -10 -10 -9 -8 -7 -7 -7 -7 -6 -6 -6 -6 -6 -6 -5 -5 -5 -5 -4 -4 ------- Run | Yrd Mat Min Mat Mat Fac Low Low Dat Pro Fac Ext Cet Arc Hub Fac Upp Upp Zhi Pro Fac Robot Analysis Total 7 | . 1 . . 2 . . . . . . . . . . . . . 4 . . Derelict Logs Recovered 7 | . . 1 . . . 3 1 . . . . . . . . . 1 . 1 . Drone Launches 2 | . . . . . . . . . . . . . . 2 . . . . . . Drone Recoveries . | . . . . . . . . . . . . . . . . . . . . . Exploration | -11 -10 -10 -9 -8 -7 -7 -7 -7 -6 -6 -6 -6 -6 -6 -5 -5 -5 -5 -4 -4 ------------- Run | Yrd Mat Min Mat Mat Fac Low Low Dat Pro Fac Ext Cet Arc Hub Fac Upp Upp Zhi Pro Fac Turns Passed 26120 | 83 1400 1125 3101 1831 2057 1660 2003 144 1196 1265 1465 978 904 455 2201 528 1761 406 691 866 Spaces Moved 11851 | 35 577 681 1360 747 1066 921 663 88 446 654 852 259 226 279 1259 318 477 165 445 333 Core 18 | 14 . . . . . . . . . . . . . . . . . . . 4 Treads 5666 | 21 577 100 724 747 1066 921 663 88 446 45 . . . . . . 179 89 . . Legs 3987 | . . . . . . . . . . 496 852 259 226 279 1259 318 298 . . . Wheels 1998 | . . 581 636 . . . . . . 113 . . . . . . . . 346 322 Hover 182 | . . . . . . . . . . . . . . . . . . 76 99 7 Flight . | . . . . . . . . . . . . . . . . . . . . . Fastest Speed 50 | 50 160 95 80 157 160 160 160 160 160 118 116 116 116 116 120 120 190 112 130 130 Average Speed 157 | 151 160 104 184 177 166 160 160 160 160 145 116 116 127 116 142 140 279 227 137 152 Slowest Speed 900 | 250 160 160 480 240 240 160 160 160 160 245 118 116 190 192 192 190 320 370 162 900 Overloaded Moves . | . . . . . . . . . . . . . . . . . . . . . Propulsion Burnouts . | . . . . . . . . . . . . . . . . . . . . . Robots Hopped . | . . . . . . . . . . . . . . . . . . . . . Cave-ins Triggered . | . . . . . . . . . . . . . . . . . . . . . Exploration Rate (%) 59 | 4 96 98 92 69 28 95 66 75 50 19 88 86 88 35 29 39 56 61 69 10 Regions Visited 20 Branch Regions 13 Pre-discovered Areas 9 | . 1 . 3 1 . . . 1 . . . . . . . . . 3 . . Known Exits Taken 18 | . 1 1 1 . 1 1 1 1 1 1 1 1 1 1 1 1 1 1 1 . Unknown Exits Taken 2 | 1 . . . 1 . . . . . . . . . . . . . . . . Scrap Searched 16 | . . . . . . 4 6 . 1 . . . . . . 1 2 . 2 . Spaces Dug 32 | . . . . . 1 . . . 4 . . . . 5 1 4 3 . 8 6 Terrain Destroyed 354 | . . 3 . 15 1 41 . . 32 . 1 1 5 10 80 5 7 . 55 98 Melee 3 | . . . . . 1 . . . . . . . . . 1 1 . . . . Projectile 69 | . . 3 . . . . . . 12 . . 1 5 10 . 4 7 . 14 13 AOE 282 | . . . . 15 . 41 . . 20 . 1 . . . 79 . . . 41 85 Terrain Rammed . | . . . . . . . . . . . . . . . . . . . . . Walls Destroyed . | . . . . . . . . . . . . . . . . . . . . . Machines Disabled . | . . . . . . . . . . . . . . . . . . . . . Actions | -11 -10 -10 -9 -8 -7 -7 -7 -7 -6 -6 -6 -6 -6 -6 -5 -5 -5 -5 -4 -4 --------- Run | Yrd Mat Min Mat Mat Fac Low Low Dat Pro Fac Ext Cet Arc Hub Fac Upp Upp Zhi Pro Fac Total 17901 | 50 939 959 1754 1041 1296 1086 1602 90 892 914 1173 907 799 361 1517 371 838 185 506 621 Wait 4535 | . 283 199 206 135 99 129 919 . 403 159 161 616 533 30 101 13 302 . 37 210 Move 11831 | 34 576 680 1359 746 1065 920 662 87 445 653 851 258 225 278 1258 317 476 164 444 333 Hop . | . . . . . . . . . . . . . . . . . . . . . Pick Up 109 | 4 10 5 19 6 6 7 4 . 1 13 7 2 5 3 7 2 1 2 . 5 Fast Attach 64 | 6 5 1 14 6 . . . . . 5 1 3 1 3 5 2 3 7 1 1 Attach 53 | . . 2 8 2 3 . . . 1 10 4 . . 1 7 1 . . . 14 Detach 22 | . 1 . 6 . . . . . . 6 2 2 . . 3 1 . . . 1 Swap 256 | . 3 4 12 23 27 13 12 2 12 18 21 5 5 13 32 13 21 2 6 12 Drop 132 | . 3 4 19 15 10 7 5 . 2 20 5 6 7 2 8 6 4 4 1 4 Fire 730 | 6 56 64 107 107 25 10 . . 28 29 75 15 22 22 61 15 30 . 17 41 Melee 24 | . . . . . 1 . . 1 . . . . . . 14 1 1 6 . . Ram . | . . . . . . . . . . . . . . . . . . . . . Kick 12 | . . . . . . . . . . 1 2 . 1 5 3 . . . . . Crush 9 | . 2 . 4 1 2 . . . . . . . . . . . . . . . Escape Stasis . | . . . . . . . . . . . . . . . . . . . . . Rewire 45 | . . . . . . . . . . . 44 . . 1 . . . . . . Trap 76 | . . . . . 58 . . . . . . . . . 18 . . . . . Miscellaneous 3 | . . . . . . . . . . . . . . 3 . . . . . . Route ------- -11/Scrapyard -10/Materials (discovered 6 exits: *Mat x3 / *Min x2 / Sub) -10/Mines (discovered 4 exits: *Mat x2 / [*Exi] / Sub) -9/Materials (discovered 7 exits: *Mat x3 / *Min x2 / *Sto x2) -8/Materials (discovered 2 exits: *Fac x2) -7/Factory (discovered 3 exits: *Fac / *Low x2) -7/Lower Caves -7/Lower Caves (discovered 2 exits: *Fac / *Dat) -7/Data Miner -6/Proximity Caves -6/Factory (discovered 3 exits: Fac / *Low / *Ext) -6/Extension (discovered 2 exits: *Fac / *Cet) -6/Cetus (discovered 2 exits: *Fac / *Arc) -6/Archives (discovered 3 exits: *Fac / *Hub x2) -6/Hub_04(d) (discovered 2 exits: *Fac x2) -5/Factory (discovered 2 exits: *Fac / *Upp) -5/Upper Caves -5/Upper Caves -5/Zhirov -4/Proximity Caves -4/Factory History --------- Turn | Location | Event 22 | -11/Scrapyard | Discovered new exit (range 16) 84 | -11/Scrapyard | Entered Materials 321 | -10/Materials | Build established: Mutant 455 | -10/Materials | Discovered new exit (range 16) 513 | -10/Materials | Discovered new exit (range 16) 666 | -10/Materials | Core integrity fell below 50% 790 | -10/Materials | Discovered new exit (range 15) 898 | -10/Materials | Repaired Assault Rifle 1032 | -10/Materials | Discovered new exit (range 16) 1124 | -10/Materials | Learned 4 Subcaves zone layouts 1182 | -10/Materials | Learned location of 2 exits from Mines 1231 | -10/Materials | Identified exit to Subcaves 1231 | -10/Materials | Identified exit to Mines 1270 | -10/Materials | Learned 2 Mines zone layouts 1297 | -10/Materials | Loaded intel: 1 repair station location 1333 | -10/Materials | Learned Materials stockpile data 1379 | -10/Materials | Learned location of Storage (-9) 1484 | -10/Materials | Entered Mines 1485 | -10/Mines | Identified exit to Materials 1614 | -10/Mines | Learned 2 Materials zone layouts 1632 | -10/Mines | Excavation squad dispatched 1632 | -10/Mines | A large section of the Mines collapsed 1743 | -10/Mines | Core integrity fell below 20% 2132 | -10/Mines | Deemed a non-threat by the Exiles lab entrance 2132 | -10/Mines | Discovered new exit (range 5) 2379 | -10/Mines | Found a damaged Exp. Sensor Array with a note attached 2381 | -10/Mines | Found Prototype Device 2609 | -10/Mines | Entered Materials 2609 | -9/Materials | Accompanied by 2 allies 2609 | -9/Materials | Evolved 2 slots: Propulsion x2 2610 | -9/Materials | Identified exit to Materials 2614 | -9/Materials | Led the pair of lost Derelicts to an unsafe place 3003 | -9/Materials | Build established: Scavenger-Mutant 3043 | -9/Materials | Discovered exit to Materials (range 15) 3318 | -9/Materials | Discovered new exit (range 8) 3530 | -9/Materials | Identified Exp. Sensor Array 3583 | -9/Materials | Learned location of Recycling (-9) 3638 | -9/Materials | Discovered exit to Materials (range 13) 3693 | -9/Materials | Learned location of 1 exit from Recycling 3733 | -9/Materials | Identified exit to Mines 3733 | -9/Materials | Identified exit to Storage 3762 | -9/Materials | Learned location of 1 exit from Recycling 3806 | -9/Materials | Learned 2 Materials zone layouts 3844 | -9/Materials | Learned 4 Recycling zone layouts 4344 | -9/Materials | Lost 4 parts (2n1u1w) 5077 | -9/Materials | Central database locked down 5409 | -9/Materials | Repaired Broken Exp. Sensor Array 5710 | -9/Materials | Entered another Materials area 5710 | -8/Materials | Evolved 2 slots: Propulsion x1, Utility x1 6225 | -8/Materials | Destroyed 7 combat bots 6784 | -8/Materials | Discovered new exit (range 14) 6944 | -8/Materials | Learned 2 Lower Caves zone layouts 7011 | -8/Materials | Learned Storage trap positions 7120 | -8/Materials | Learned Factory trap positions 7158 | -8/Materials | Learned location of 1 exit from Lower Caves 7187 | -8/Materials | Learned location of Zion (-6) 7239 | -8/Materials | Learned Factory emergency access door positions 7281 | -8/Materials | Learned Storage trap positions 7309 | -8/Materials | Repaired Hrd. Light Armor Plating 7500 | -8/Materials | Discovered new exit (range 14) 7541 | -8/Materials | Entered Factory 7541 | -7/Factory | Evolved 2 slots: Utility x2 7542 | -7/Factory | Identified exit to Lower Caves 7543 | -7/Factory | Loaded intel: 78 trap records 8258 | -7/Factory | Discovered new exit (range 15) 8455 | -7/Factory | Identified exit to Factory 8570 | -7/Factory | Garrison activated, responded to threat 9598 | -7/Factory | Entered Lower Caves 9599 | -7/Lower Caves | Identified exit to Lower Caves 10582 | -7/Lower Caves | Encountered a Warlord checkpoint 10700 | -7/Lower Caves | Learned Factory stockpile data 10932 | -7/Lower Caves | Learned location of 1 exit from Factory 11258 | -7/Lower Caves | Entered another Lower Caves area 11279 | -7/Lower Caves | Discovered exit to Factory (range 13) 11566 | -7/Lower Caves | Learned location of 1 exit from Factory 12276 | -7/Lower Caves | Build established: Scavenger-Skirmisher 12993 | -7/Lower Caves | Discovered new exit (range 15) 13012 | -7/Lower Caves | Identified exit to Data Miner 13181 | -7/Lower Caves | Build established: Mutant 13261 | -7/Lower Caves | Entered Data Miner 13261 | -7/Data Miner | Discovered new exit (range 6) 13292 | -7/Data Miner | Met Data Miner 13340 | -7/Data Miner | Learned location of Section 7 (-3) 13340 | -7/Data Miner | Acquired the access code to Warlord's prototype stash 13365 | -7/Data Miner | Received God Mode back door access code from Data Miner 13401 | -7/Data Miner | Identified exit to Proximity Caves 13405 | -7/Data Miner | Entered Proximity Caves 13949 | -6/Proximity Caves | Build established: Scavenger-Skirmisher 14104 | -6/Proximity Caves | Attracted the attention of an 0b10 checkpoint 14391 | -6/Proximity Caves | Build established: Scavenger-Mutant 14556 | -6/Proximity Caves | Discovered exit to Factory (range 14) 14601 | -6/Proximity Caves | Entered Factory 14601 | -6/Factory | Evolved 2 slots: Power x1, Utility x1 14602 | -6/Factory | Identified exit to Extension 14603 | -6/Factory | Identified exit to Factory 14603 | -6/Factory | Identified exit to Lower Caves 15282 | -6/Factory | Build established: Mutant 15866 | -6/Factory | Entered Extension 15963 | -6/Extension | Rescued a captive Derelict 16097 | -6/Extension | Rescued a captive Derelict 16155 | -6/Extension | Rescued A7 16776 | -6/Extension | Spotted B-75 Beast 16788 | -6/Extension | Destroyed B-75 Beast 16801 | -6/Extension | Spotted B-75 Beast 16821 | -6/Extension | Destroyed B-75 Beast 16852 | -6/Extension | Lost 3 allies 17102 | -6/Extension | Rescued a captive Derelict 17103 | -6/Extension | Rescued a captive Derelict 17161 | -6/Extension | Rescued a captive Derelict 17216 | -6/Extension | Disrupted transfer network 17219 | -6/Extension | Rescued a captive Derelict 17219 | -6/Extension | Rescued a captive Derelict 17270 | -6/Extension | Build established: Commander-Mutant 17290 | -6/Extension | Discovered exit to Factory (range 10) 17291 | -6/Extension | Discovered new exit (range 6) 17311 | -6/Extension | Identified exit to Cetus 17331 | -6/Extension | Entered Cetus 17331 | -6/Cetus | Accompanied by 10 allies (A7) 17336 | -6/Cetus | Acquired a Cetus Manufacturing Module code from A7 17347 | -6/Cetus | Spotted Cetus Guard 17347 | -6/Cetus | Spotted Cetus Guard 17349 | -6/Cetus | Spotted Cetus Guard 17349 | -6/Cetus | Spotted Cetus Guard 17354 | -6/Cetus | Allies destroyed Cetus Guard 17360 | -6/Cetus | Allies destroyed Cetus Guard 17364 | -6/Cetus | Allies destroyed Cetus Guard 17371 | -6/Cetus | Destroyed Cetus Guard 17466 | -6/Cetus | Started Cetus Manufacturing Module 17474 | -6/Cetus | Escorted A7 to Cetus Mainframe 17491 | -6/Cetus | Manufactured an Enhanced Grunt 17516 | -6/Cetus | Manufactured an Enhanced Grunt 17541 | -6/Cetus | Manufactured an Enhanced Grunt 17566 | -6/Cetus | Manufactured an Enhanced Grunt 17591 | -6/Cetus | Manufactured an Enhanced Grunt 17911 | -6/Cetus | Discovered new exit (range 20) 18081 | -6/Cetus | Security sweep announced 18170 | -6/Cetus | Spotted Cetus Guard 18170 | -6/Cetus | Spotted Cetus Guard 18172 | -6/Cetus | Spotted Cetus Guard 18173 | -6/Cetus | Spotted Cetus Guard 18184 | -6/Cetus | Destroyed Cetus Guard 18191 | -6/Cetus | Allies destroyed Cetus Guard 18195 | -6/Cetus | Allies destroyed Cetus Guard 18196 | -6/Cetus | Allies destroyed Cetus Guard 18196 | -6/Cetus | Discovered exit to Factory (range 15) 18205 | -6/Cetus | Met Revision 17 18278 | -6/Cetus | Identified exit to Archives 18309 | -6/Cetus | Entered Archives 18309 | -6/Archives | Accompanied by 13 allies (A7) 18314 | -6/Archives | Received a hacking code to weaken MAIN.C 18372 | -6/Archives | Lost 4 allies 18475 | -6/Archives | Discovered new exit (range 13) 18518 | -6/Archives | Discovered new exit (range 16) 18539 | -6/Archives | Unable to access archive contents 19149 | -6/Archives | Discovered exit to Factory (range 15) 19203 | -6/Archives | Identified exit to Hub_04(d) 19213 | -6/Archives | Entered Hub_04(d) 19213 | -6/Hub_04(d) | Accompanied by 8 allies 19375 | -6/Hub_04(d) | Discovered exit to Factory (range 9) 19476 | -6/Hub_04(d) | Discovered exit to Factory (range 40) 19630 | -6/Hub_04(d) | Network Hub disabled 19633 | -6/Hub_04(d) | Spotted Lightning 19636 | -6/Hub_04(d) | Spotted Lightning 19645 | -6/Hub_04(d) | Spotted Lightning 19648 | -6/Hub_04(d) | Spotted Lightning 19650 | -6/Hub_04(d) | Spotted Lightning 19651 | -6/Hub_04(d) | Spotted Lightning 19668 | -6/Hub_04(d) | Entered Factory 19668 | -5/Factory | Evolved 2 slots: Utility x2 19696 | -5/Factory | Lost 5 allies 19711 | -5/Factory | Build established: Scavenger-Mutant 20643 | -5/Factory | Destroyed 7 combat bots 20991 | -5/Factory | Discovered new exit (range 15) 21250 | -5/Factory | Discovered new exit (range 11) 21269 | -5/Factory | Identified exit to Factory 21868 | -5/Factory | Identified exit to Upper Caves 21869 | -5/Factory | Entered Upper Caves 22162 | -5/Upper Caves | Build established: Scavenger-Skirmisher 22365 | -5/Upper Caves | Discovered new exit (range 19) 22395 | -5/Upper Caves | Identified exit to Upper Caves 22397 | -5/Upper Caves | Entered another Upper Caves area 22988 | -5/Upper Caves | Learned 12 Factory zone layouts 23538 | -5/Upper Caves | Attracted the attention of an 0b10 checkpoint 23584 | -5/Upper Caves | Lost 3 parts (1p2n) 23853 | -5/Upper Caves | Discovered new exit (range 9) 23876 | -5/Upper Caves | Identified exit to Zhirov 23982 | -5/Upper Caves | Build established: Skirmisher 24158 | -5/Upper Caves | Entered Zhirov 24158 | -5/Zhirov | Discovered new exit (range 3) 24216 | -5/Zhirov | Met Zhirov 24274 | -5/Zhirov | Learned location of Quarantine (-3) 24274 | -5/Zhirov | Learned location of Testing (-2) 24274 | -5/Zhirov | Learned location of Command (-1) 24296 | -5/Zhirov | Build established: Scavenger-Assassin 24322 | -5/Zhirov | Zhirov requested help retrieving the SGEMP Prototype 24373 | -5/Zhirov | Found Alien Artifact 24373 | -5/Zhirov | Identified Integrated Reactor 24373 | -5/Zhirov | Installed Integrated Reactor, increased core energy generation (+10) 24560 | -5/Zhirov | Identified exit to Proximity Caves 24564 | -5/Zhirov | Entered Proximity Caves 24866 | -4/Proximity Caves | Build established: Skirmisher 25162 | -4/Proximity Caves | Learned 4 Research zone layouts 25237 | -4/Proximity Caves | Discovered exit to Factory (range 15) 25253 | -4/Proximity Caves | Spotted B-86 Titan 25255 | -4/Proximity Caves | Entered Factory 25255 | -4/Factory | Evolved 2 slots: Utility x1, Weapon x1 26014 | -4/Factory | Cargo convoy interrupted 26024 | -4/Factory | Lost 6 parts (1p4u1w) 26034 | -4/Factory | Incoming assault squad redirected 26073 | -4/Factory | Destroyed 12 combat bots 26098 | -4/Factory | Core integrity fell below 50% 26108 | -4/Factory | Core integrity fell below 20% 26121 | -4/Factory | Destroyed by X-82 Rainmaker with Heavy Flak Cannon Last Messages --------------- 26110_ Penetrated by Slug. 26111_ U-05 Engineer lays Concrete. 26112_ Knocked back. 26112_ U-05 Engineer lays Concrete. 26113_ Penetrated by Slug. 26113_ Slug penetrates Wall. 26113_ U-05 Engineer lays Concrete. 26114_ K-01 Serf collects debris. 26115_ Knocked back. 26115_ U-05 Engineer lays Concrete. 26117_ K-01 Serf collects debris. 26117_ Penetrated by Slug. 26118_ U-05 Engineer lays Concrete. 26118_ K-01 Serf collects debris. 26118_ Penetrated by Slug. 26118_ Critical hit (Destroy). 26118_ Penetrated by Slug. 26118_ Hcp. Storage Unit destroyed. 26119_ U-05 Engineer lays Concrete. 26120_ Penetrated by Slug. Map ----- +----------------------------------------------------+ | ???????????????# """ """ #?????##???#?????? ? ? | | ???????????????# """ """ #?????????????#????"?? | | ???????????????# """ """ #??????????????? ? ??? | | ???????????????# #????????????????????? | | ???????????????# """ """ #????????????????????? | | ???????????????# """ """ ! #????????????????????? | | ???????????????# """ """ #????????????????????? | | #??????????# =% !#?????????????# ????? | | #??????????######+#######?????????????###????? | | #####?????????????# [ #???##############???????? | | ??????????????????# #???# #???????? | | ??????????????????# #???# #???????? | | ####?????########## #???# ####????? | | #?############## #???# """ """ + ????? | | ### # #???# """ """ ####????? | | ### #% #???# """ """ #???????? | | ! ; #???# #???????? | | =%* ; #???# #???????? | | ; #???# "" "" #???????? | | ### ! ; #???# ""S"" #???????? | | ! ! u t #???# """" #???????? | | !! #???# #???????? | | # # ! !! ###########+#########????? | | # kk!=/[ ????? | | ## u h ===%!% ! ????? | | ## # = x !![! != @! "????? | | # /##/ ! ;;;;;#%[!= [ ^ ! !!! "????? | | # #||%=# # ##![[!& ^ !!! "????? | | ### =!% ######!!/ ######### !! ????? | | #?# * #####! # # """"" "????? | | #?## * " # """"" "????? | | ###"# + # """ "????? | | ??? # ""T"" # ????? | | ???? % # """"" # ????? | | ?????" ? # # ????? | | ?????" ? ######### ####+##????? | | ???????? ? ######### ## ????? | | ??????????? k ## ????? | | ???????????? #### T### ## ????? | | ?????????????? ???####?# ## ????? | | ?????????????????????????# ## ????? | | ?????????????????????????# ## ????? | | ????????????????????##???# ## ????? | | ???????????????????? #???# ## ????? | | ???????????????????? #???# + ????? | | ???????????????????? ##### ######### ????? | | ???????????????????? + #???????# ????? | | ???????????????????? # #???????# ????? | | ???????????????????? + #???????######????? | | ???????????????????? #######/########????????????? | +----------------------------------------------------+ Best States ------------- Heat Dissipation 70 Coolant Potential 80 Energy Generation 49 Energy Capacity 400 Matter Stores 300 Matter Capacity 300 Sight Range 16 Robot Scan Range 20 Terrain Scan Range 20 Terrain Scan Density 210 Jamming Range 14 Armor Coverage 450 Resistance: KI 25 Resistance: TH 20 Resistance: EM 25 Core Shielding 20 Weapon Shielding 90 Evasion (%) 55 Targeting Accuracy 8 Recoil Reduction 5 Particle Charging 20 Offensive Hacking 14 Item Schematics ----------------- Hcp. Storage Unit | -9/Materials | Hacked Exp. Sensor Array | -9/Materials | Scanalyzed Plasma Cutter | -9/Materials | Scanalyzed Imp. Targeting Computer | -9/Materials | Scanalyzed Hacking Suite | -9/Materials | Scanalyzed Lgt. Armor Plating | -9/Materials | Scanalyzed Assault Rifle | -9/Materials | Scanalyzed Combat Drone Bay | -7/Data Miner | Free Lgt. Regenerative Plating | -7/Data Miner | Free Biomechanical Wings | -7/Data Miner | Free Thermal Defense Suite | -7/Data Miner | Free Imp. Heavy Laser | -7/Data Miner | Free Linear Gravjet | -7/Data Miner | Free Imp. Component Analysis Suite | -7/Data Miner | Free Lance | -7/Data Miner | Free Drone Bay | -7/Data Miner | Free Adv. Plasma Cannon | -7/Data Miner | Free Assault Drone Bay | -5/Zhirov | Free Exp. Heat Sink | -5/Zhirov | Free Exp. Optical Array | -5/Zhirov | Free Imp. Arc Thrower | -5/Zhirov | Free Robot Schematics ------------------ G-50 Soldier | -7/Data Miner | Free G-47 Trooper | -7/Data Miner | Free B-48 Gladiator | -7/Data Miner | Free L-41 Fighter | -7/Data Miner | Free R-10 Processor | -7/Data Miner | Free Fabricated ------------ Nothing Alien Tech Used ----------------- Integrated Reactor Achievements -------------- Can't Touch This Challenges ------------ None Game ------ Seed GravmagTachyonExtrapolator Manual? 0 Play Time 04:09:54 Cumulative 211.3 hours Start 2024.10.03 @ 00:23:53 End 2024.10.03 @ 11:20:45 Sessions 3 Manual Loads 0 Difficulty Rogue Special Mode None Game No. 155 Rogue 155 Adventurer 0 Explorer 0 Win Type - Total 8 Types 7/0/1/0/0/0/0/0/0 Lore% 52 Gallery% 63 Achievement% 59 Wizard Run 0 Options --------- Layout 0 ASCII 0 Keyboard 1 Movement Numpad Keybinds 0 Fullscreen 2 Font 18/X11 Map View 76x50 Zoom Use 0% Tactical HUD 1 Map Filters NONE Filters NONE Steam 1 RUN: 09d9e811-e018-4dfa-9df6-f31eafd09788